Cogmind - Beta 17 @@@ ROGUE MODE // 2026.07.09 @ 18:40:10 Player: Ammie Result: Destroyed by D-53 Grenadier with Mini Grenade Launcher Performance ------------- Evolutions (1) 500 Regions Visited (4) 800 Robots Destroyed (84) 420 Value Destroyed (2113) 2113 Prototype IDs (6) 120 Alien Tech Used (0) 0 Bonus (32) 32 TOTAL SCORE: 3985 Bonus ------- High Alert Combat Kills 32 Cogmind --------- Core Integrity 0/400 Matter 300/300 Energy 280/280 System Corruption 4% Temperature Cool (0) Movement Treading (250) Ox1 Location -9/Mines Parts ------- > --- POWER (1) -------- Heavy Ion Engine > --- PROPULSION (3) --- Armored Treads Armored Treads Armored Treads > --- UTILITY (3) ------ High-capacity Storage Unit Sensor Array > --- WEAPON (2) ------- Heavy Particle Cannon Heavy Particle Cannon > --- INVENTORY (20) --- Heavy Ion Engine Heavy Ion Engine Light Nuclear Core Light Treads Light Treads Light Treads Light Treads Light Treads Armored Treads ECM Suite Hacking Suite Hacking Suite Hacking Suite Beam Rifle Beam Rifle Light EM Pulse Cannon Heavy Particle Cannon Heavy Particle Cannon Mini Grenade Launcher Datajack Peak State ------------ > --- POWER ------------ Heavy Ion Engine > --- PROPULSION ------- Armored Treads Armored Treads Armored Treads > --- UTILITY ---------- Cooling System High-capacity Storage Unit Sensor Array > --- WEAPON ----------- Heavy Particle Cannon Heavy Particle Cannon > --- INVENTORY -------- Heavy Ion Engine Heavy Ion Engine Light Nuclear Core Light Treads Light Treads Light Treads Light Treads Light Treads Light Treads Light Treads Hacking Suite Hacking Suite Hacking Suite Beam Rifle Beam Rifle Light EM Pulse Cannon Heavy Particle Cannon Heavy Particle Cannon Mini Grenade Launcher Datajack [Rating: 26] Favorites ----------- Power Heavy Ion Engine Engine Heavy Ion Engine Power Core Light Nuclear Core Propulsion Light Treads Treads Light Treads Utility High-capacity Storage Unit Device Sensor Array Storage High-capacity Storage Unit Hackware Hacking Suite Weapon Heavy Particle Cannon Energy Gun Medium Laser Energy Cannon Heavy Particle Cannon Ballistic Gun Assault Rifle Launcher Grenade Launcher Build | -11 -10 -10 -9 -9 ------- Run | Yrd Mat Min Mat Min Slots Evolved 2 | . . . 2 . Power . | . . . . . Propulsion 1 | . . . 1 . Utility 1 | . . . 1 . Weapon . | . . . . . Parts Attached 52 | 7 8 . 37 . Power 6 | 1 . . 5 . Engine 5 | 1 . . 4 . Core 1 | . . . 1 . Reactor . | . . . . . Propulsion 18 | 2 2 . 14 . Treads 18 | 2 2 . 14 . Leg . | . . . . . Wheel . | . . . . . Hover . | . . . . . Flight . | . . . . . Utility 9 | 1 2 . 6 . Device 5 | . 1 . 4 . Storage 3 | 1 1 . 1 . Processor . | . . . . . Hackware 1 | . . . 1 . Protection . | . . . . . Artifact . | . . . . . Weapon 19 | 3 4 . 12 . Energy Gun 8 | 1 1 . 6 . Energy Cannon 7 | . 1 . 6 . Ballistic Gun 3 | 2 1 . . . Ballistic Cannon . | . . . . . Launcher 1 | . 1 . . . Special Weapon . | . . . . . Impact Weapon . | . . . . . Slashing Weapon . | . . . . . Piercing Weapon . | . . . . . Special Melee Weapon . | . . . . . Unidentified Prototypes 4 | . . . 4 . Parts Lost 16 | . 1 . 14 1 Power 2 | . . . 2 . Propulsion 6 | . 1 . 5 . Utility 4 | . . . 3 1 Weapon 4 | . . . 4 . Highest Loss Streak 5 | . 1 . 5 1 To Critical Strikes . | . . . . . Average Backups 15 | 1 8 13 18 20 Power 2 | . 1 2 2 3 Propulsion 3 | . 1 3 4 6 Utility 2 | . 1 3 2 4 Weapon 5 | . 3 4 6 6 Tool/Special . | . . . . . Unused Backups 18 | . 1 . 5 12 Power 4 | . . . 2 2 Propulsion 1 | . . . . 1 Utility 4 | . . . . 4 Weapon 7 | . . . 3 4 Tool/Special 2 | . 1 . . 1 Average Slot Usage (%) 97 | . 94 100 98 99 Engine 11 | . 14 14 10 11 Treads 29 | . 23 28 32 33 Device 18 | . 13 14 20 21 Storage 12 | . 14 14 11 11 Energy Gun 9 | . 7 14 10 . Energy Cannon 10 | . 7 14 10 22 Ballistic Gun 3 | . 13 . . . Peak Build Rating 26 | 6 10 10 26 26 Average Rating 16 | 4 9 10 19 25 On Entrance 10 | . 6 10 10 26 Avg Prop Armor Cover (%) . | . . . . . Naked Turns . | . . . . . Heaviest Build 63 | 13 32 31 63 63 Greatest Support 60 | 40 40 40 60 60 Greatest Overweight (x) 2 | . 1 . 2 1 Average Overweight (x) . | . . . . 1 Largest Inventory Capacity 20 | 8 15 15 20 20 Average Capacity 18 | 6 14 15 19 20 Most Carried 20 | 2 13 13 20 20 Average Carried 15 | 1 8 13 18 20 Final Capacity 20 | 8 15 15 20 20 Final Carried 20 | 2 13 13 20 20 Class Distribution -------------------- 93% | Mutant 6% | Scavenger-Mutant Dominant Class ---------------- Mutant | -10/Materials Mutant | -10/Mines Mutant | -9/Materials Mutant | -9/Mines Resources | -11 -10 -10 -9 -9 ----------- Run | Yrd Mat Min Mat Min Matter Collected 1215 | 186 375 . 649 5 Remotely . | . . . . . Salvage Created 3246 | . 816 . 2415 15 Parts 187 | . 52 . 135 . Haulers Intercepted 8 | . 2 . 6 . Recyclers Shooed 6 | . 2 . 4 . Parts Field Recycled . | . . . . . Retrieved Matter . | . . . . . Parts Self-Destructed . | . . . . . Prevented . | . . . . . Parts Restored . | . . . . . Kills | -11 -10 -10 -9 -9 ------- Run | Yrd Mat Min Mat Min Combat Hostiles Destroyed 55 | . 16 . 38 1 Guns 25 | . 10 . 15 . Cannons 21 | . 4 . 16 1 AOE 4 | . 1 . 3 . Classes Destroyed 12 | . 7 . 4 1 Worker 2 | . 1 . 1 . Builder 1 | . . . 1 . Hauler 8 | . 2 . 6 . Recycler 5 | . 2 . 3 . Operator 7 | . 3 . 4 . Watcher 7 | . 2 . 5 . Swarmer 9 | . 6 . 3 . Grunt 32 | . 10 . 22 . Brawler 2 | . . . 2 . Duelist 1 | . . . 1 . Sentry 10 | . . . 10 . Assembled 1 | . . . . 1 Best Kill Streak 8 | . 6 . 8 1 Combat Bots Only 7 | . 4 . 7 1 Max Kills in Single Turn 3 | . 3 . 2 1 Gunslinging . | . . . . . Exploded 2 | . 1 . 2 . Melee . | . . . . . Uniques/NPCs Destroyed . | . . . . . Combat | -11 -10 -10 -9 -9 -------- Run | Yrd Mat Min Mat Min Hostile Shots Fired 299 | . 76 . 211 12 Missed 84 | . 27 . 56 1 Hits 215 | . 49 . 155 11 Melee 3 | . . . 3 . Projectile 212 | . 49 . 152 11 AOE 7 | . . . . 7 Critical Strikes 4 | . 2 . 1 1 Damage Taken 3137 | . 689 . 2117 331 Core 523 | . 114 . 383 26 Absorbed by Shields . | . . . . . Core Remaining (%) 77 | 100 . 54 . . Volleys Fired 236 | . 100 . 135 1 Largest 2 | . 2 . 2 2 Hottest 150 | . 110 . 150 150 Shots Fired 461 | . 196 . 262 3 Gun 283 | . 136 . 147 . Cannon 177 | . 59 . 115 3 Launcher 1 | . 1 . . . Special . | . . . . . Kinetic 80 | . 80 . . . Thermal 295 | . 115 . 177 3 Explosive 1 | . 1 . . . Electromagnetic 85 | . . . 85 . Robot Hit Streak 13 | . 13 . 13 2 Robot Miss Streak 5 | . 4 . 5 1 Penetration Max . | . . . . . Secondary Targets 1 | . 1 . . . Max Gunslinging Chain 1 | . 1 . . . Shots Hit Robots 277 | . 111 . 164 2 Core Hits 117 | . 39 . 77 1 Critical Kills 3 | . 1 . 2 . Critical Parts Destroyed . | . . . . . Critical Strikes 12 | . 4 . 8 . Burn 9 | . 3 . 6 . Meltdown 2 | . . . 2 . Destroy 1 | . 1 . . . Melee Attacks . | . . . . . Impact . | . . . . . Slashing . | . . . . . Piercing . | . . . . . Sneak Attacks . | . . . . . Combat Hostiles . | . . . . . Follow-up Attacks . | . . . . . Damage Inflicted 5216 | . 1872 . 3294 50 Guns 2390 | . 956 . 1434 . Cannons 2085 | . 543 . 1492 50 Explosions 727 | . 373 . 354 . Melee . | . . . . . Ramming 14 | . . . 14 . Kinetic 557 | . 557 . . . Thermal 3410 | . 1315 . 2045 50 Explosive 185 | . . . 185 . Electromagnetic 1050 | . . . 1050 . Impact . | . . . . . Slashing . | . . . . . Piercing . | . . . . . Highest Corruption 4 | . 1 1 4 4 Average Corruption 2 | . 1 1 3 4 Corruption Purged . | . . . . . Corruption Blocked . | . . . . . Effects 87 | . 8 2 70 7 Message Errors 21 | . 3 1 16 1 Matter Fused 23 | . 2 1 18 2 Heat Flow Errors 7 | . . . 7 . Energy Discharges 14 | . 1 . 12 1 Data Loss (minor) 7 | . 1 . 5 1 Data Loss (major) 6 | . 1 . 5 . Misfires 4 | . . . 3 1 Alerts 2 | . . . 1 1 Weapon Failures 3 | . . . 3 . Overload Shots . | . . . . . Overflow Damage 279 | . 174 . 105 . Projectiles 23 | . 8 . 15 . Explosions 256 | . 166 . 90 . Melee . | . . . . . Knockbacks . | . . . . . Impact . | . . . . . Kinetic . | . . . . . Secondary . | . . . . . Self-Inflicted Damage 322 | . 87 . 235 . Shots 5 | . 1 . 4 . Rammed 2 | . . . 2 . Targets Rammed 2 | . . . 2 . Kicked . | . . . . . Crushed . | . . . . . Highest Temperature 375 | . 207 . 375 158 Average Temperature 56 | . 32 . 67 81 Received Heat Transfer 1053 | . 261 . 792 . Effects 1 | . . . 1 . Shutdowns 1 | . . . 1 . Siege Activations . | . . . . . Martial Activations . | . . . . . Shielding Activations . | . . . . . Robots Disrupted . | . . . . . Combat Hostiles . | . . . . . Robots Corrupted 1 | . . . 1 . Combat Hostiles 1 | . . . 1 . Parts Fried 9 | . . . 9 . Impact Corruptions . | . . . . . Robots Melted 4 | . 1 . 3 . Combat Hostiles 4 | . 1 . 3 . Parts Melted 12 | . 7 . 5 . Heat Transferred 7567 | . 2803 . 4690 74 Parts Sabotaged . | . . . . . Parts Stolen . | . . . . . Parts Stripped . | . . . . . Power Chain Reactions 3 | . . . 3 . Alert | -11 -10 -10 -9 -9 ------- Run | Yrd Mat Min Mat Min Maximum Alert Level 2 | . . . 2 . Low Security (%) 51 | 100 100 100 21 100 Level 1 41 | . . . 67 . Level 2 6 | . . . 10 . Level 3 . | . . . . . Level 4 . | . . . . . Level 5 . | . . . . . High Security . | . . . . . Max Security . | . . . . . Peak Influence 444 | . 173 17 444 171 Initial 171 | . . 17 . 171 Average 196 | . 60 1 281 115 Influence Increases 1856 | . 569 . 1286 1 Destroy 0b10 Robot/C 1080 | . 320 . 760 . Destroy 0b10 Robot/NC 150 | . 50 . 100 . Destroy Leader 320 | . 78 . 242 . Successful Hack 13 | . 5 . 8 . Disable Machine 75 | . 15 . 60 . Destroy Structure 83 | . 26 . 56 1 Partial Spotted 15 | . 15 . . . Lose Combat Pursuer 120 | . 60 . 60 . Influence Decreases 1804 | . 524 45 847 388 Entered New Map 296 | . . 28 . 268 Time Decay 1348 | . 514 17 707 110 Lost Part 160 | . 10 . 140 10 Squads Dispatched 10 | . 3 . 7 . Investigation 3 | . . . 3 . Extermination . | . . . . . Reinforcement 7 | . 3 . 4 . Assault . | . . . . . Garrison . | . . . . . Intercept . | . . . . . Searches Triggered . | . . . . . Construction Impeded . | . . . . . Haulers Reinforced . | . . . . . Active Scanning Responses . | . . . . . Cargo Convoy Interrupts . | . . . . . Stealth | -11 -10 -10 -9 -9 --------- Run | Yrd Mat Min Mat Min Distress Signals 5 | . 2 . 3 . Communications Jammed . | . . . . . Distress Signals . | . . . . . Times Spotted 107 | . 36 . 58 13 Peak Tracking Total 22 | . 6 . 8 22 Tactical Retreats 5 | . 2 . 3 . Traps | -11 -10 -10 -9 -9 ------- Run | Yrd Mat Min Mat Min Traps Triggered 8 | . 3 . 5 . Indirectly . | . . . . . Trap Hack Attempts . | . . . . . Triggered . | . . . . . Disarmed . | . . . . . Reprogrammed . | . . . . . Reused . | . . . . . Traps Extracted . | . . . . . Installed . | . . . . . Triggered . | . . . . . Machines | -11 -10 -10 -9 -9 ---------- Run | Yrd Mat Min Mat Min Machines Disabled 6 | . 1 . 5 . Max in Single Turn 3 | . 1 . 3 . Machines Repaired . | . . . . . Machines Dismantled . | . . . . . Machines Sabotaged . | . . . . . Overloaded Fab Kills . | . . . . . Hacking | -11 -10 -10 -9 -9 --------- Run | Yrd Mat Min Mat Min Machines Accessed 11 | . 3 1 7 . Terminals 9 | . 3 1 5 . Fabricators . | . . . . . Repair Stations 1 | . . . 1 . Recycling Units . | . . . . . Scanalyzers 1 | . . . 1 . Garrison Access . | . . . . . Total Hacks 25 | . 6 3 16 . Successful 12 | . 4 . 8 . Failed 13 | . 2 3 8 . Catastrophic . | . . . . . Database Lockouts . | . . . . . Manual 14 | . 4 3 7 . Terminals 20 | . 6 3 11 . Fabricators . | . . . . . Repair Stations 3 | . . . 3 . Recycling Units . | . . . . . Scanalyzers 2 | . . . 2 . Garrison Access . | . . . . . Terminal Hacks 5 | . 2 . 3 . Prototype ID Bank 1 | . . . 1 . Locate Traps 1 | . 1 . . . Transport Status 1 | . . . 1 . Zone Layout 2 | . 1 . 1 . Fabricator Hacks . | . . . . . Repair Station Hacks 1 | . . . 1 . Scan Component 1 | . . . 1 . Recycling Unit Hacks . | . . . . . Scanalyzer 2 | . . . 2 . Insert Component 1 | . . . 1 . Analyze 1 | . . . 1 . Garrison Access Hacks . | . . . . . Unauthorized Hacks 4 | . 2 . 2 . Terminals 4 | . 2 . 2 . Botnet 4 | . 2 . 2 . Fabricators . | . . . . . Repair Stations . | . . . . . Recycling Units . | . . . . . Scanalyzers . | . . . . . Garrison Access . | . . . . . Data Cores Recovered . | . . . . . Used . | . . . . . Hacking Detections 8 | . 1 1 6 . Full Trace Events 3 | . . . 3 . Feedback Events . | . . . . . Feedback Blocked . | . . . . . Robot Schematics Acquired . | . . . . . Robots Built . | . . . . . Authchips . | . . . . . Time . | . . . . . Total Robot Build Rating . | . . . . . Part Schematics Acquired 1 | . . . 1 . Parts Built . | . . . . . Authchips . | . . . . . Time . | . . . . . Total Part Build Rating . | . . . . . Part Studies Acquired . | . . . . . Parts Repaired . | . . . . . Time . | . . . . . Parts Recycled . | . . . . . Recycled Matter . | . . . . . Retrieved Matter . | . . . . . Retrieved Components . | . . . . . Parts Scanalyzed 1 | . . . 1 . Part Schematics Acquired 1 | . . . 1 . Parts Damaged . | . . . . . Bothacking | -11 -10 -10 -9 -9 ------------ Run | Yrd Mat Min Mat Min Used RIF Installer . | . . . . . Robots Hacked . | . . . . . Non-combat . | . . . . . Combat . | . . . . . Robot Hacks Applied . | . . . . . Relay Couplers Released . | . . . . . Fabnet Peak Effective % . | . . . . . Robots Rewired . | . . . . . Allies Hacked . | . . . . . Hacks Repelled . | . . . . . Allies | -11 -10 -10 -9 -9 -------- Run | Yrd Mat Min Mat Min Total Allies . | . . . . . Largest Group . | . . . . . Highest-Rated Group . | . . . . . Highest-Rated Ally . | . . . . . Total Orders . | . . . . . Ally Attacks . | . . . . . Total Damage . | . . . . . Kills . | . . . . . Allies Corrupted . | . . . . . Allies Melted . | . . . . . Intel | -11 -10 -10 -9 -9 ------- Run | Yrd Mat Min Mat Min Active Infowar (turns) 3161 | . . . 2926 235 Sensors 3161 | . . . 2926 235 Robot Analysis Total . | . . . . . Derelict Logs Recovered 1 | . . . . 1 Drone Launches . | . . . . . Drone Recoveries . | . . . . . Exploration | -11 -10 -10 -9 -9 ------------- Run | Yrd Mat Min Mat Min Turns Passed 5863 | 65 1684 246 3633 235 Spaces Moved 2653 | 37 726 150 1652 88 Core 7 | 7 . . . . Treads 2646 | 30 726 150 1652 88 Legs . | . . . . . Wheels . | . . . . . Hover . | . . . . . Flight . | . . . . . Fastest Speed 50 | 50 160 160 160 250 Average Speed 183 | 139 181 160 183 250 Slowest Speed 320 | 160 240 160 320 250 Overloaded Moves . | . . . . . Propulsion Burnouts . | . . . . . Robots Hopped . | . . . . . Potential Cave-ins . | . . . . . Cave-ins Triggered . | . . . . . Exploration Rate (%) 52 | 3 92 40 98 31 Regions Visited 4 Branch Regions 2 Pre-discovered Areas . | . . . . . Known Exits Taken . | . . . . . Unknown Exits Taken 4 | 1 1 1 1 . Scrap Searched 2 | . . . . 2 Spaces Dug . | . . . . . Terrain Destroyed 82 | . 22 . 59 1 Melee . | . . . . . Projectile 14 | . . . 13 1 AOE 68 | . 22 . 46 . Terrain Rammed . | . . . . . Walls Destroyed . | . . . . . Machines Disabled . | . . . . . Actions | -11 -10 -10 -9 -9 --------- Run | Yrd Mat Min Mat Min Total 3182 | 46 899 156 1979 102 Wait 168 | . 53 7 95 13 Move 2649 | 36 725 149 1651 88 Hop . | . . . . . Pick Up 35 | 1 10 . 24 . Fast Attach 18 | 6 3 . 9 . Attach 11 | . . . 11 . Detach . | . . . . . Swap 41 | 3 6 . 32 . Drop 22 | . 2 . 20 . Fire 236 | . 100 . 135 1 Melee . | . . . . . Ram . | . . . . . Kick . | . . . . . Crush 2 | . . . 2 . Escape Stasis . | . . . . . Rewire . | . . . . . Trap . | . . . . . Miscellaneous . | . . . . . Route ------- -11/Scrapyard -10/Materials (discovered 5 exits: *Mat x3 / *Min x2) -10/Mines -9/Materials (discovered 6 exits: [*Mat x3] / [*Min x2] / [*Sto]) -9/Mines (discovered 1 exit: [*Mat]) History --------- Turn | Location | Event 3 | -11/Scrapyard | Discovered new exit (range 15) 66 | -11/Scrapyard | Entered Materials 109 | -10/Materials | Discovered new exit (range 5) 314 | -10/Materials | Build established: Mutant 398 | -10/Materials | Discovered new exit (range 5) 590 | -10/Materials | Discovered new exit (range 8) 1074 | -10/Materials | Discovered new exit (range 13) 1389 | -10/Materials | Discovered new exit (range 10) 1750 | -10/Materials | Entered Mines 1988 | -10/Mines | Discovered new exit (range 4) 1996 | -10/Mines | Entered Materials 1996 | -9/Materials | Evolved 2 slots: Propulsion x1, Utility x1 2093 | -9/Materials | Discovered new exit (range 4) 2348 | -9/Materials | Lost 5 parts (1p1n2u1w) 2487 | -9/Materials | Discovered new exit (range 13) 2712 | -9/Materials | Discovered new exit (range 14) 3018 | -9/Materials | Core integrity fell below 50% 3040 | -9/Materials | Discovered new exit (range 14) 3081 | -9/Materials | Destroyed 7 combat bots 3095 | -9/Materials | Lost 4 parts (2n2w) 3178 | -9/Materials | Core integrity fell below 20% 3262 | -9/Materials | Discovered new exit (range 16) 3597 | -9/Materials | Discovered new exit (range 8) 5629 | -9/Materials | Entered Mines 5644 | -9/Mines | Learned location of 1 exit from Materials 5757 | -9/Mines | Discovered new exit (range 14) 5836 | -9/Mines | Assembled infested the area 5864 | -9/Mines | Destroyed by D-53 Grenadier with Mini Grenade Launcher Last Messages --------------- 05855_ as-40245 destroyed. 05855_ as-26348 destroyed. 05855_ as-41080 destroyed. 05855_ as-57282 destroyed. 05855_ as-70714 destroyed. 05856_ HV Slug penetrates as-93145. 05856_ as-93145 suffers critical hit (Destroy). 05856_ as-93145 destroyed. 05857_ as-07212 destroyed. 05857_ as-74709 destroyed. 05859_ HV Slug penetrates as-65956. 05859_ HV Slug penetrates Wall. 05860_ U-05 Engineer lays Concrete. 05861_ HV Slug penetrates Wall. 05861_ U-05 Engineer lays Concrete. 05862_ The unstable cave ceiling collapses. 05862_ as-88919 destroyed. 05862_ U-05 Engineer builds a Wall. 05863_ HV Slug penetrates as-58688. 05863_ as-58688 destroyed. Map ----- +----------------------------------------------------+ | | | | | | | | | | | | | | | | | | | | | | | ?????????????????????????????????????????? | | ?????????????????????????????????????????? | | ?????????????????????????????????????????? | | ?????? ???????????###????????????????????? | | ?????? %????????# ##???????????????????? | | ????? %%????### #???????????????????? | | ????? %%%##?## #???????????????????? | | ???? ## ????????????????????? | | ???? ????????????????????? | | ????# a ?????????????????????? | | ?????# ?????????????????????? | | ???#;# ###???????????????????? | | ???## #???????????????????? | | ???# #?????????????? # ?? | | ???# @ ###???????????? | | ????# ##??????????? | | ?????## d #???????????# ?? | | ??????# # ##???????????# ?? | | ?????????## d #????????????# ##? | | ??????????### #???????????# ?? | | ????????????## #???????????# #?? | | ?????????????## # ###??????????## #?? | | ??????????????#### # u"##???####### ##? | | ?????????????????### ##### ## #? | | ???????????????????#; ## #? | | ????????????????????# ## | | ????????????????????# < | | ????????????????????## # | | ?????????????????????# # | | ?????????????????????# # | | ?????????????????????## #### ## | | ??????????????????????## ##??## ##? | | ???????????????????????# #????####?? | | ????????????????????? #?????????? | | ?????????????????? ##?????????? | | ????????????????? ###### ## #??????????? | | ???????????????????????##### #??????????? | | ???????????????????????????# #??????????? | | ??????????????????????????? #??????????? | +----------------------------------------------------+ Best States ------------- Heat Dissipation 50 Energy Generation 14 Energy Capacity 280 Matter Stores 300 Matter Capacity 300 Sight Range 16 Robot Scan Range 14 Terrain Scan Density 10 Evasion (%) 40 Recoil Reduction 3 Offensive Hacking 10 Item Schematics ----------------- Hacking Suite | -9/Materials | Scanalyzed Robot Schematics ------------------ None Fabricated ------------ Nothing Repaired ---------- Nothing Studied --------- None Alien Tech Used ----------------- None Achievements -------------- None Challenges ------------ None Game ------ Seed GaussChipBeamcaster Manual? 0 Play Time 00:34:07 Cumulative 85.8 hours Start 2026.07.09 @ 17:48:53 End 2026.07.09 @ 18:40:10 Sessions 1 Manual Loads 0 Difficulty Rogue Special Mode None Game No. 145 Rogue 145 Adventurer 0 Explorer 0 Win Type - Total 0 Types 0/0/0/0/0/0/0/0/0/0 Lore% 21 Gallery% 31 Achievement% 28 Wizard Run 0 Options --------- Layout 0 ASCII 0 Keyboard 0 Movement Mouse Keybinds 0 Fullscreen 1 Font 24/Smallcaps Map View 38x25 Zoom Use 97% Tactical HUD 1 Map Filters NONE Filters NONE Steam 1 RUN: 4f831b4a-40bf-4a9d-9823-cf73f424c207